fUST/lending_fUST_20250212
["ID","MTS","AMOUNT","RATE_DAILY","PERIOD"]
[352763504,1739298640015,-157.0,0.00010973,2]
[352763506,1739298640025,-157.0,0.00010973,2]
[352763508,1739298640035,-157.0,0.00010973,2]
[352763510,1739298640044,-157.0,0.00010973,2]
[352763513,1739298640054,-157.0,0.00010973,2]
[352763515,1739298640064,-157.0,0.00010973,2]
[352763517,1739298640074,-157.0,0.00010973,2]
[352763519,1739298640084,-157.0,0.00010973,2]
[352763521,1739298640094,-157.0,0.00010973,2]
[352763523,1739298640105,-157.0,0.00010973,2]
[352763524,1739298640116,-173.98,0.00010973,2]
[352763525,1739298640126,-158.0,0.00010973,2]
[352763526,1739298640136,-158.0,0.00010973,2]
[352763527,1739298640146,-158.0,0.00010973,2]
[352763528,1739298640155,-158.0,0.00010973,2]
[352763529,1739298640164,-158.0,0.00010973,2]
[352763530,1739298640174,-158.0,0.00010973,2]
[352763531,1739298640183,-158.0,0.00010973,2]
[352763532,1739298640193,-158.0,0.00010973,2]
[352763533,1739298640203,-158.0,0.00010973,2]
[352763535,1739298640212,-158.0,0.00010973,2]
[352763537,1739298640222,-158.0,0.00010973,2]
[352763539,1739298640231,-158.0,0.00010973,2]
[352763541,1739298640241,-158.0,0.00010973,2]
[352763543,1739298640250,-158.0,0.00010973,2]
[352763545,1739298640259,-158.0,0.00010973,2]
[352763547,1739298640268,-158.0,0.00010973,2]
[352763549,1739298640281,-158.0,0.00010973,2]
[352763551,1739298640291,-172.97,0.00010973,2]
[352763553,1739298640300,-283.48868724,0.00010999,2]
[352763555,1739298640309,-582.88,0.00010999,2]
[352763557,1739298640319,-582.88,0.00010999,2]
[352763559,1739298640328,-582.88,0.00010999,2]
[352763561,1739298640337,-582.88,0.00010999,2]
[352763563,1739298640347,-582.88,0.00010999,2]
[352763566,1739298640357,-582.88,0.00010999,2]
[352763568,1739298640368,-582.88,0.00010999,2]
[352763569,1739298640377,-582.88,0.00010999,2]
[352763572,1739298640387,-582.88,0.00010999,2]
[352763574,1739298640396,-582.88,0.00010999,2]
[352763576,1739298640406,-582.93705194,0.00010999,2]
[352763578,1739298640415,-151.0,0.00010999,2]
[352763580,1739298640425,-151.0,0.00010999,2]
[352763581,1739298640434,-151.0,0.00010999,2]
[352763584,1739298640444,-142639.09921824,0.00011,5]
[352763586,1739298640453,-10024.84765951,0.00011,5]
[352763588,1739298640463,-42715.78180185,0.00011,2]
[352763590,1739298640472,-1500615.21378096,0.00011,2]
[352763592,1739298640481,-100000.0,0.00011,2]
[352763594,1739298640491,-2988975.76043497,0.00011,2]
[352763596,1739298640505,-3672.65693114,0.00011,2]
[352763612,1739298640644,-843.24190781,0.00011,2]
[352763615,1739298640672,-162887.35072608,0.00011,2]
[352763617,1739298640682,-151.0,0.00011,2]
[352763619,1739298640692,-151.0,0.00011,2]
[352763622,1739298640702,-151.0,0.00011,2]
[352763625,1739298640713,-151.0,0.00011,2]
[352763627,1739298640723,-151.0,0.00011,2]
[352763630,1739298640733,-151.0,0.00011,2]
[352763633,1739298640743,-151.0,0.00011,2]
[352763635,1739298640752,-151.0,0.00011,2]
[352763637,1739298640762,-151.0,0.00011,2]
[352763639,1739298640772,-154.137068,0.00011,2]
[352763641,1739298640782,-151.0,0.00011,2]
[352763643,1739298640791,-151.0,0.00011,2]
[352763645,1739298640801,-151.0,0.00011,2]
[352763648,1739298640812,-151.820404,0.00011,2]
[352763650,1739298640821,-223.601084,0.00011,2]
[352763651,1739298640831,-223.601084,0.00011,2]
[352763653,1739298640840,-223.601084,0.00011,2]
[352763655,1739298640849,-223.601084,0.00011,2]
[352763657,1739298640858,-155.775724,0.00011,2]
[352763659,1739298640872,-236.003474,0.00011,2]
[352763661,1739298640882,-151.0,0.00011,2]
[352763663,1739298640891,-151.0,0.00011,2]
[352763666,1739298640901,-151.0,0.00011,2]
[352763668,1739298640910,-151.0,0.00011,2]
[352763670,1739298640920,-151.0,0.00011,2]
[352763672,1739298640930,-151.0,0.00011,2]
[352763674,1739298640940,-298.451128,0.00011,2]
[352763676,1739298640949,-240.320738,0.00011,2]
[352763678,1739298640959,-730.266877,0.00011,2]
[352763679,1739298640970,-730.266877,0.00011,2]
[352763681,1739298640979,-730.266877,0.00011,2]
[352763684,1739298640989,-730.266877,0.00011,2]
[352763685,1739298640998,-730.266877,0.00011,2]
[352763687,1739298641007,-151.0,0.00011,2]
[352763690,1739298641017,-730.266877,0.00011,2]
[352763691,1739298641027,-151.0,0.00011,2]
[352763693,1739298641037,-730.266877,0.00011,2]
[352763695,1739298641047,-151.0,0.00011,2]
[352763698,1739298641057,-730.266877,0.00011,2]
[352763700,1739298641066,-151.0,0.00011,2]
[352763702,1739298641076,-151.0,0.00011,2]
[352763704,1739298641086,-151.0,0.00011,2]
[352763706,1739298641095,-165.27103,0.00011,2]
[352763708,1739298641104,-151.0,0.00011,2]
[352763709,1739298641115,-151.0,0.00011,2]
[352763711,1739298641125,-249.477806,0.00011,2]
[352763714,1739298641134,-206.7882,0.00011,2]
[352763716,1739298641144,-151.0,0.00011,2]
[352763718,1739298641154,-151.0,0.00011,2]
[352763720,1739298641163,-151.0,0.00011,2]
[352763722,1739298641173,-151.0,0.00011,2]
[352763724,1739298641182,-166.42364,0.00011,2]
[352763726,1739298641191,-159.717378,0.00011,2]
[352763728,1739298641201,-159.717378,0.00011,2]
[352763730,1739298641213,-159.717378,0.00011,2]
[352763732,1739298641225,-159.717378,0.00011,2]
[352763734,1739298641236,-159.717378,0.00011,2]
[352763736,1739298641245,-159.717378,0.00011,2]
[352763738,1739298641255,-159.717378,0.00011,2]
[352763740,1739298641265,-159.717378,0.00011,2]
[352763742,1739298641275,-1000.0,0.00011,2]
[352763744,1739298641284,-151.0,0.00011,2]
[352763746,1739298641294,-151.0,0.00011,2]
[352763748,1739298641303,-209.074989,0.00011,2]
[352763750,1739298641312,-209.074989,0.00011,2]
[352763752,1739298641322,-209.074989,0.00011,2]
[352763754,1739298641331,-209.074989,0.00011,2]
[352763756,1739298641341,-209.074989,0.00011,2]
[352763758,1739298641350,-209.074989,0.00011,2]
[352763760,1739298641362,-209.074989,0.00011,2]
[352763762,1739298641372,-209.074989,0.00011,2]
[352763764,1739298641382,-151.0,0.00011,2]
[352763766,1739298641392,-151.0,0.00011,2]
[352763769,1739298641402,-151.0,0.00011,2]
[352763770,1739298641411,-151.0,0.00011,2]
[352763772,1739298641421,-151.0,0.00011,2]
[352763775,1739298641431,-151.0,0.00011,2]
[352763776,1739298641440,-151.0,0.00011,2]
[352763778,1739298641451,-151.0,0.00011,2]
[352763780,1739298641460,-151.0,0.00011,2]
[352763782,1739298641471,-162.137142,0.00011,2]
[352763784,1739298641480,-151.277727,0.00011,2]
[352763787,1739298641491,-151.0,0.00011,2]
[352763788,1739298641500,-151.0,0.00011,2]
[352763791,1739298641510,-151.0,0.00011,2]
[352763793,1739298641520,-151.0,0.00011,2]
[352763795,1739298641530,-151.0,0.00011,2]
[352763797,1739298641539,-151.0,0.00011,2]
[352763799,1739298641549,-151.0,0.00011,2]
[352763801,1739298641558,-151.0,0.00011,2]
[352763803,1739298641568,-200.360506,0.00011,2]
[352763805,1739298641578,-200.360506,0.00011,2]
[352763807,1739298641588,-200.360506,0.00011,2]
[352763809,1739298641598,-200.360506,0.00011,2]
[352763811,1739298641608,-200.360506,0.00011,2]
[352763813,1739298641621,-200.360506,0.00011,2]
[352763815,1739298641631,-200.360506,0.00011,2]
[352763817,1739298641640,-200.360506,0.00011,2]
[352763819,1739298641650,-1247.610039,0.00011,2]
[352763821,1739298641659,-1247.610039,0.00011,2]
[352763823,1739298641669,-1247.610039,0.00011,2]
[352763825,1739298641678,-1247.610039,0.00011,2]
[352763827,1739298641688,-1247.610039,0.00011,2]
[352763829,1739298641698,-1247.610039,0.00011,2]
[352763831,1739298641708,-1247.610039,0.00011,2]
[352763833,1739298641717,-1247.610039,0.00011,2]
[352763835,1739298641727,-151.0,0.00011,2]
[352763837,1739298641737,-151.0,0.00011,2]
[352763839,1739298641747,-225.840494,0.00011,2]
[352763841,1739298641756,-151.0,0.00011095,2]
[352763843,1739298641767,-501.75470528,0.00011095,2]
[352763845,1739298641776,-253.70387265,0.00011095,2]
[352763847,1739298641786,-500.0,0.00011095,2]
[352763849,1739298641795,-500.0,0.00011095,2]
[352763851,1739298641805,-500.0,0.00011095,2]
[352763853,1739298641814,-500.0,0.00011095,2]
[352763855,1739298641824,-500.0,0.00011095,2]
[352763857,1739298641833,-500.0,0.00011095,2]
[352763859,1739298641842,-500.0,0.00011095,2]
[352763861,1739298641852,-470.0,0.00011095,2]
[352763863,1739298641865,-500.0,0.00011095,2]
[352763865,1739298641876,-500.0,0.00011095,2]
[352763867,1739298641885,-500.0,0.00011095,2]
[352763869,1739298641894,-500.0,0.00011095,2]
[352763871,1739298641904,-500.0,0.00011095,2]
[352763873,1739298641915,-500.0,0.00011095,2]
[352763875,1739298641924,-500.0,0.00011095,2]
[352763877,1739298641933,-500.0,0.00011095,2]
[352763879,1739298641942,-500.0,0.00011095,2]
[352763881,1739298641952,-500.0,0.00011095,2]
[352763883,1739298641961,-500.0,0.00011095,2]
[352763885,1739298641970,-500.0,0.00011095,2]
[352763887,1739298641980,-500.0,0.00011095,2]
[352763889,1739298641989,-500.0,0.00011095,2]
[352763891,1739298641998,-500.0,0.00011095,2]
[352763893,1739298642008,-500.0,0.00011095,2]
[352763895,1739298642018,-500.0,0.00011095,2]
[352763897,1739298642028,-586.53427266,0.00011095,2]
[352763899,1739298642038,-500.0,0.00011095,2]
[352763901,1739298642048,-500.0,0.00011095,2]
[352763903,1739298642057,-500.0,0.00011095,2]
[352763905,1739298642067,-500.0,0.00011095,2]
[352763907,1739298642076,-500.0,0.00011095,2]
[352763909,1739298642086,-500.0,0.00011095,2]
[352763911,1739298642096,-500.0,0.00011095,2]
[352763913,1739298642105,-501.77942504,0.00011095,2]
[352763915,1739298642116,-309.54676741,0.00011095,2]
[352763917,1739298642126,-548.00220004,0.00011095,2]
[352763919,1739298642135,-500.0,0.00011095,2]
[352763921,1739298642144,-500.0,0.00011095,2]
[352763923,1739298642154,-500.0,0.00011095,2]
[352763925,1739298642163,-500.0,0.00011095,2]
[352763927,1739298642173,-223.601084,0.00011095,2]
[352763929,1739298642182,-500.0,0.00011095,2]
[352763931,1739298642191,-603.64841268,0.00011095,2]
[352763933,1739298642201,-618.38,0.00011095,2]
[352763935,1739298642211,-500.0,0.00011095,2]
[352763937,1739298642221,-409.95118041,0.00011095,2]
[352763939,1739298642230,-500.0,0.00011095,2]
[352763941,1739298642240,-500.0,0.00011095,2]
[352763943,1739298642249,-647.19,0.00011095,2]
[352763945,1739298642258,-500.0,0.00011095,2]
[352763947,1739298642267,-632.67434406,0.00011095,2]
[352763949,1739298642278,-585.85,0.00011095,2]
[352763951,1739298642287,-500.0,0.00011095,2]
[352763953,1739298642296,-500.0,0.00011095,2]
[352763955,1739298642306,-730.266877,0.00011095,2]
[352763957,1739298642315,-730.266877,0.00011095,2]
[352763959,1739298642325,-151.0,0.00011095,2]
[352763961,1739298642334,-500.0,0.00011095,2]
[352763963,1739298642344,-500.0,0.00011095,2]
[352763965,1739298642353,-500.0,0.00011095,2]
[352763967,1739298642364,-500.0,0.00011095,2]
[352763969,1739298642374,-557.09,0.00011095,2]
[352763971,1739298642384,-500.0,0.00011095,2]
[352763973,1739298642394,-500.0,0.00011095,2]
[352763975,1739298642403,-500.0,0.00011095,2]
[352763977,1739298642412,-500.0,0.00011095,2]
[352763979,1739298642422,-500.0,0.00011095,2]
[352763981,1739298642431,-500.0,0.00011095,2]
[352763983,1739298642441,-500.0,0.00011095,2]
[352763985,1739298642451,-500.0,0.00011095,2]
[352763987,1739298642461,-151.0,0.00011095,2]
[352763989,1739298642472,-159.717378,0.00011095,2]
[352763991,1739298642482,-159.717378,0.00011095,2]
[352763993,1739298642492,-500.0,0.00011095,2]
[352763995,1739298642502,-500.0,0.00011095,2]
[352763997,1739298642511,-741.72,0.00011095,2]
[352763999,1739298642521,-500.0,0.00011095,2]
[352764001,1739298642531,-349.78760054,0.00011095,2]
[352764003,1739298642541,-150.21,0.00011095,2]
[352764005,1739298642550,-500.0,0.00011095,2]
[352764007,1739298642560,-380.54855771,0.00011095,2]
[352764009,1739298642569,-500.0,0.00011095,2]
[352764011,1739298642579,-1113.91,0.00011095,2]
[352764013,1739298642589,-500.0,0.00011095,2]
[352764015,1739298642599,-1467.62,0.00011095,2]
[352764017,1739298642608,-500.0,0.00011095,2]
[352764019,1739298642620,-7666.39,0.00011095,2]
[352764021,1739298642629,-15710.52,0.00011095,2]
[352764023,1739298642638,-827.43,0.00011095,2]
[352764025,1739298642648,-2083.74,0.00011095,2]
[352764027,1739298642657,-500.0,0.00011095,2]
[352764029,1739298642667,-500.0,0.00011095,2]
[352764031,1739298642676,-692.22,0.00011095,2]
[352764033,1739298642686,-872.38,0.00011095,2]
[352764035,1739298642695,-500.0,0.00011095,2]
[352764037,1739298642704,-500.0,0.00011095,2]
[352764039,1739298642713,-1040.06,0.00011095,2]
[352764041,1739298642723,-550.71,0.00011095,2]
[352764043,1739298642732,-500.0,0.00011095,2]
[352764045,1739298642742,-500.0,0.00011095,2]
[352764047,1739298642751,-500.0,0.00011095,2]
[352764049,1739298642761,-500.0,0.00011095,2]
[352764051,1739298642770,-500.0,0.00011095,2]
[352764053,1739298642779,-692.51,0.00011095,2]
[352764055,1739298642789,-209.074989,0.00011095,2]
[352764057,1739298642798,-209.074989,0.00011095,2]
[352764059,1739298642808,-500.0,0.00011095,2]
[352764061,1739298642817,-500.0,0.00011095,2]
[352764063,1739298642827,-150.21,0.00011095,2]
[352764066,1739298642837,-150.21,0.00011095,2]
[352764069,1739298642847,-150.21,0.00011095,2]
[352764071,1739298642856,-979.69,0.00011095,2]
[352764074,1739298642867,-151.0,0.00011095,2]
[352764077,1739298642879,-150.21,0.00011095,2]
[352764079,1739298642889,-178.54764,0.00011095,2]
[352764082,1739298642898,-500.0,0.00011095,2]
[352764084,1739298642909,-500.0,0.00011095,2]
[352764089,1739298642920,-500.0,0.00011095,2]
[352764093,1739298642929,-151.0,0.00011095,2]
[352764096,1739298642938,-500.0,0.00011095,2]
[352764099,1739298642952,-2758.51,0.00011095,2]
[352764102,1739298642962,-151.0,0.00011095,2]
[352764104,1739298642972,-500.0,0.00011095,2]
[352764106,1739298642981,-661.86,0.00011095,2]
[352764108,1739298642991,-1137.25,0.00011095,2]
[352764110,1739298643001,-649.1,0.00011095,2]
[352764113,1739298643010,-500.0,0.00011095,2]
[352764116,1739298643020,-1318.45,0.00011095,2]
[352764120,1739298643029,-500.0,0.00011095,2]
[352764123,1739298643039,-500.0,0.00011095,2]
[352764126,1739298643049,-500.0,0.00011095,2]
[352764129,1739298643058,-1591.15,0.00011095,2]
[352764132,1739298643067,-713.51,0.00011095,2]
[352764135,1739298643077,-500.0,0.00011095,2]
[352764138,1739298643087,-500.0,0.00011095,2]
[352764141,1739298643096,-500.0,0.00011095,2]
[352764142,1739298643106,-500.0,0.00011095,2]
[352764143,1739298643116,-150.21,0.00011095,2]
[352764144,1739298643126,-4796.27,0.00011095,2]
[352764145,1739298643135,-200.360506,0.00011095,2]
[352764147,1739298643145,-150.21,0.00011095,2]
[352764149,1739298643155,-500.0,0.00011095,2]
[352764151,1739298643165,-217.80647309,0.00011095,2]
[352764153,1739298643174,-200.360506,0.00011095,2]
[352764155,1739298643184,-500.0,0.00011095,2]
[352764157,1739298643193,-500.0,0.00011095,2]
[352764158,1739298643203,-747.82,0.00011095,2]
[352764159,1739298643213,-1094.16,0.00011095,2]
[352764160,1739298643223,-500.0,0.00011095,2]
[352764161,1739298643234,-897.28,0.00011095,2]
[352764162,1739298643244,-500.0,0.00011095,2]
[352764163,1739298643253,-1247.610039,0.00011095,2]
[352764164,1739298643263,-500.0,0.00011095,2]
[352764165,1739298643273,-256.30413288,0.00011095,2]
[352764178,1739298643395,-243.69586712,0.00011095,2]
[352764180,1739298643405,-500.0,0.00011095,2]
[352764182,1739298643415,-1247.610039,0.00011095,2]
[352764184,1739298643424,-1181.66,0.00011095,2]
[352764186,1739298643434,-150.21,0.00011095,2]
[352764188,1739298643443,-204.82301162,0.00011095,2]
[352764190,1739298643454,-160.50510187,0.00011095,2]
[352764192,1739298643464,-500.0,0.00011095,2]
[352764194,1739298643474,-500.0,0.00011095,2]
[352764196,1739298643485,-150.21,0.00011095,2]
[352764198,1739298643495,-2043.69,0.00011095,2]
[352764200,1739298643514,-283.43001279,0.00011095,2]
[352764203,1739298643524,-500.0,0.00011095,2]
[352764205,1739298643535,-165.9610248,0.000111,2]
[352764207,1739298643544,-377.3768216,0.000111,2]
[352764209,1739298643556,-354.5362005,0.000111,2]
[352764211,1739298643566,-151.0,0.00011232,2]
[352764213,1739298643576,-500.0,0.00011232,2]
[352764215,1739298643585,-500.0,0.00011232,2]
[352764217,1739298643595,-223.601084,0.00011232,2]
[352764219,1739298643604,-618.38,0.00011232,2]
[352764221,1739298643615,-500.0,0.00011232,2]
[352764223,1739298643625,-500.0,0.00011232,2]
[352764225,1739298643634,-500.0,0.00011232,2]
[352764227,1739298643644,-647.19,0.00011232,2]
[352764229,1739298643655,-500.0,0.00011232,2]
[352764231,1739298643665,-585.85,0.00011232,2]
[352764233,1739298643675,-500.0,0.00011232,2]
[352764235,1739298643685,-500.0,0.00011232,2]
[352764237,1739298643694,-730.266877,0.00011232,2]
[352764239,1739298643704,-730.266877,0.00011232,2]
[352764241,1739298643714,-151.0,0.00011232,2]
[352764258,1739298643867,-500.0,0.00011232,2]
[352764260,1739298643878,-500.0,0.00011232,2]
[352764262,1739298643888,-557.09,0.00011232,2]
[352764264,1739298643898,-500.0,0.00011232,2]
[352764266,1739298643909,-500.0,0.00011232,2]
[352764268,1739298643918,-244.44755779,0.00011232,2]
[352764273,1739298643960,-255.55244221,0.00011232,2]
[352764275,1739298643969,-244.44755779,0.00011232,2]
[352764282,1739298644031,-255.55244221,0.00011232,2]
[352764285,1739298644042,-2529.44758277,0.00011232,4]
[352764287,1739298644054,-1211.05,0.00011232,4]
[352764289,1739298644067,-2216.29619753,0.00011232,4]
[352764291,1739298644078,-409.02391257,0.00011232,2]
[352764321,1739298644355,-308.2622936,0.00010957,2]
[352764323,1739298644368,-191.7377064,0.00010957,2]
[352764325,1739298644378,-500.0,0.00010957,2]
[352764327,1739298644388,-500.0,0.00010957,2]
[352764329,1739298644398,-151.0,0.00010959,2]
[352764331,1739298644408,-278.54,0.00010959,2]
[352764333,1739298644418,-151.0,0.00010959,2]
[352764335,1739298644428,-151.0,0.00011,2]
[352764337,1739298644438,-90.97608743,0.00011232,2]
[352764339,1739298644448,-500.0,0.00011232,2]
[352764341,1739298644458,-151.0,0.00011232,2]
[352764343,1739298644468,-159.717378,0.00011232,2]
[352764345,1739298644479,-159.717378,0.00011232,2]
[352764348,1739298644492,-500.0,0.00011232,2]
[352764350,1739298644502,-500.0,0.00011232,2]
[352764352,1739298644512,-741.72,0.00011232,2]
[352764354,1739298644521,-500.0,0.00011232,2]
[352764356,1739298644531,-500.0,0.00011232,2]
[352764358,1739298644540,-1113.91,0.00011232,2]
[352764360,1739298644550,-500.0,0.00011232,2]
[352764362,1739298644559,-1467.62,0.00011232,2]
[352764363,1739298644569,-500.0,0.00011232,2]
[352764365,1739298644579,-270.96145017,0.00011232,2]
[352764571,1739298646533,-479.25,0.00010957,2]
[352764578,1739298646589,-20.75,0.00010957,2]
[352764580,1739298646599,-500.0,0.00010957,2]
[352764582,1739298646608,-399.39812613,0.00010957,2]
[352764584,1739298646619,-500.0,0.00010957,2]
[352764586,1739298646629,-500.0,0.00010957,2]
[352764588,1739298646639,-500.0,0.00010957,2]
[352764590,1739298646650,-278.35363875,0.00010957,2]
[352764593,1739298646670,-221.64636125,0.00010957,2]
[352764595,1739298646680,-500.0,0.00010957,2]
[352764597,1739298646690,-1.69636347,0.00010957,2]
[352768161,1739299836763,-300.0,9.967e-05,2]
[352768162,1739299836773,-18904.44695266,9.968e-05,2]
[352768163,1739299836784,-951.40894554,9.968e-05,2]
[352768164,1739299836840,-5044.1441018,9.968e-05,2]
[352768165,1739299836849,-400.0,0.00010685,2]
[352768166,1739299836859,-479.15737192,0.0001073,2]
[352768167,1739299836869,-151.0,0.0001095,2]
[352768168,1739299836880,-396.0,0.00010955,2]
[352768169,1739299836889,-500.0,0.00010958,2]
[352768170,1739299836899,-500.0,0.00010958,2]
[352768171,1739299836909,-500.0,0.00010958,2]
[352768172,1739299836918,-458.94979894,0.00010958,2]
[352768173,1739299836931,-41.05020106,0.00010958,2]
[352768174,1739299836941,-500.0,0.00010958,2]
[352768175,1739299836950,-500.0,0.00010958,2]
[352768176,1739299836960,-500.0,0.00010958,2]
[352768177,1739299836969,-500.0,0.00010958,2]
[352768178,1739299836978,-495.83144774,0.00010958,2]
[352768204,1739299838429,-4.16855226,0.00010958,2]
[352768206,1739299838439,-500.0,0.00010958,2]
[352768207,1739299838449,-500.0,0.00010958,2]
[352768208,1739299838459,-500.0,0.00010958,2]
[352768209,1739299838469,-523.95,0.00010958,2]
[352768210,1739299838480,-643.74,0.00010958,2]
[352768211,1739299838490,-500.0,0.00010958,2]
[352768212,1739299838500,-500.0,0.00010958,2]
[352768213,1739299838510,-500.0,0.00010958,2]
[352768214,1739299838520,-500.0,0.00010958,2]
[352768215,1739299838530,-500.0,0.00010958,2]
[352768216,1739299838540,-500.0,0.00010958,2]
[352768217,1739299838550,-500.0,0.00010958,2]
[352768218,1739299838560,-500.0,0.00010958,2]
[352768219,1739299838571,-500.0,0.00010958,2]
[352768220,1739299838583,-500.0,0.00010958,2]
[352768221,1739299838593,-500.0,0.00010958,2]
[352768222,1739299838603,-500.0,0.00010958,2]
[352768223,1739299838612,-500.0,0.00010958,2]
[352768224,1739299838621,-500.0,0.00010958,2]
[352768225,1739299838631,-500.0,0.00010958,2]
[352768226,1739299838641,-500.0,0.00010958,2]
[352768227,1739299838650,-500.0,0.00010958,2]
[352768228,1739299838660,-500.0,0.00010958,2]
[352768229,1739299838669,-500.0,0.00010958,2]
[352768230,1739299838678,-500.0,0.00010958,2]
[352768231,1739299838688,-1910.09,0.00010958,2]
[352768232,1739299838697,-2528.64,0.00010958,2]
[352768233,1739299838707,-500.0,0.00010958,2]
[352768234,1739299838717,-7016.24,0.00010958,2]
[352768235,1739299838726,-606.7,0.00010958,2]
[352768236,1739299838736,-953.39,0.00010958,2]
[352768237,1739299838745,-1220.86,0.00010958,2]
[352768238,1739299838754,-500.0,0.00010958,2]
[352768239,1739299838764,-500.0,0.00010958,2]
[352768240,1739299838773,-500.0,0.00010958,2]
[352768241,1739299838783,-500.0,0.00010958,2]
[352768242,1739299838793,-500.0,0.00010958,2]
[352768243,1739299838803,-1063.31,0.00010958,2]
[352768244,1739299838813,-375.08996329,0.00010958,2]
[352768245,1739299838823,-500.0,0.00010958,2]
[352768246,1739299838833,-595.01,0.00010958,2]
[352768247,1739299838843,-220.40765364,0.00010958,2]
[352768248,1739299838853,-500.0,0.00010958,2]
[352768249,1739299838863,-1002.98,0.00010958,2]
[352768250,1739299838873,-500.0,0.00010958,2]
[352768251,1739299838883,-654.05,0.00010958,2]
[352768252,1739299838893,-500.0,0.00010958,2]
[352768253,1739299838903,-500.0,0.00010958,2]
[352768254,1739299838913,-500.0,0.00010958,2]
[352768255,1739299838923,-500.0,0.00010958,2]
[352768256,1739299838933,-4396.58,0.00010958,2]
[352768257,1739299838942,-500.0,0.00010958,2]
[352768258,1739299838953,-822.51,0.00010958,2]
[352768259,1739299838963,-500.0,0.00010958,2]
[352768260,1739299838973,-500.0,0.00010958,2]
[352768261,1739299838982,-500.0,0.00010958,2]
[352768262,1739299838991,-500.0,0.00010958,2]
[352768263,1739299839001,-473.32275248,0.00010958,2]
[352768264,1739299839011,-1083.18,0.00010958,2]
[352768265,1739299839021,-687.16,0.00010958,2]
[352768266,1739299839030,-500.0,0.00010958,2]
[352768267,1739299839039,-14434.79,0.00010958,2]
[352768268,1739299839049,-1873.38,0.00010958,2]
[352768269,1739299839058,-541.08,0.00010958,2]
[352768270,1739299839068,-799.68,0.00010958,2]
[352768271,1739299839078,-500.0,0.00010958,2]
[352768272,1739299839089,-500.0,0.00010958,2]
[352768273,1739299839098,-500.0,0.00010958,2]
[352768274,1739299839108,-504.82,0.00010958,2]
[352768275,1739299839118,-974.67,0.00010958,2]
[352768276,1739299839128,-1458.56,0.00010958,2]
[352768277,1739299839137,-500.0,0.00010958,2]
[352768278,1739299839146,-1284.17,0.00010958,2]
[352768279,1739299839156,-500.0,0.00010958,2]
[352768280,1739299839165,-649.0,0.00010958,2]
[352768281,1739299839175,-758.47,0.00010958,2]
[352768282,1739299839184,-685.5,0.00010958,2]
[352768283,1739299839194,-500.0,0.00010958,2]
[352768284,1739299839203,-500.0,0.00010958,2]
[352768285,1739299839213,-634.53,0.00010958,2]
[352768286,1739299839222,-500.0,0.00010958,2]
[352768287,1739299839231,-500.0,0.00010958,2]
[352768288,1739299839241,-265.36073785,0.00010958,2]